[Event "85th Armenian Mens-ch 2024"]
[Site "Yerevan"]
[Date "2024.11.26"]
[Round "3.1"]
[White "Sahakyan, Aleks"]
[Black "Sargsyan, Sargis Vach."]
[Result "0-1"]
[Annotator "TA"]
[ECO "D73"]
[WhiteElo "2380"]
[BlackElo "2321"]
[PlyCount "112"]
[EventDate "2024.11.24"]
[EventCountry "ARM"]
[SourceTitle "playchess.com"]
[Source "ChessBase"]
[SourceQuality "1"]
[TimeControl "40/5400+30:1800+30"]

{[%evp 38,112,16,32,18,24,14,33,24,22,21,16,24,19,32,17,12,12,12,0,0,0,0,0,0,0,0,0,0,0,0,0,0,-56,-56,-187,-176,-185,-181,-179,-169,-169,-180,-239,-212,-233,-231,-238,-233,-309,-308,-310,-318,-317,-312,-416,-421,-636,-631,-865,-852,-787,-770,-978,-927,-975,-707,-4731,-1231,-1203,-1136,-1104,-1015,-890,-840,-5127,-4753]} 1. Nf3 {[%emt 0:00:03]} d5 {[%emt 0:00:26]} 2. g3 {[%emt 0:00:06]} g6 {[%emt 0:00:38]} 3. Bg2 {[%emt 0:00:04]} Bg7 {[%emt 0:00:11]} 4. d4 {[%emt 0:00:05]} Nf6 {[%emt 0:00:10]} 5. c4 {[%emt 0:00:07]} c6 {[%emt 0:00:50]} 6. O-O {[%emt 0:00:06]} O-O {[%emt 0:00:19]} 7. a4 {[%emt 0:00:03]} dxc4 {[%emt 0:04:34]} 8. a5 {[%emt 0:00:04] D73: Fianchetto Grünfeld: 5 Nf3 .} Ne4 {[%emt 0:03:37]} 9. Nc3 {[%emt 0:00:54]} Nd6 {[%emt 0:00:53]} 10. h3 $146 {[%emt 0:15:01]} ({Predecessor:} 10. Ne5 Be6 11. a6 Nxa6 12. Nxc6 Qc7 13. Bg5 Rae8 14. Nxa7 Qb6 15. d5 Bd7 16. Be3 Qxb2 {0-1 Bakhrillaev,B (2325)-Finek,V (2429) Titled Tuesday intern op 06th Feb Early blitz 2024 (4)}) 10... Na6 {[%emt 0:01:38]} 11. e4 {[%emt 0:02:00]} Nb4 {[%emt 0:03:00]} 12. Be3 {[%emt 0:12:07]} Nd3 {[%emt 0:05:49]} 13. Qd2 {[%emt 0:10:20]} f5 {[%emt 0:07:28]} 14. e5 {[%emt 0:03:16]} f4 {[%emt 0:00:30]} 15. gxf4 {[%emt 0:01:40]} Nb5 {[%emt 0:02:15]} 16. Ne2 {[%emt 0:05:03]} Bf5 {[%emt 0:06:21]} 17. Ra4 {[%emt 0:00:48]} Be4 {[%emt 0:01:47]} 18. Ng3 {[%emt 0:06:25]} Bxf3 {[%emt 0:00:29]} 19. Bxf3 {[%emt 0:00:02]} Nxd4 {[%emt 0:06:35]} 20. Bg2 {[%emt 0:01:43]} Ne6 $1 {[%emt 0:07:04]} (20... Nb3 $2 21. Qc3 Nxa5 22. Rxa5 (22. Qxa5 Qxa5 23. Rxa5 Nxf4 $18) 22... Nxf4 23. Qxc4+ (23. Bxa7 b5 $11) 23... e6 24. b4 $18 (24. Rxa7 Rxa7 25. Bxa7 Bxe5 $18)) 21. Rxc4 {[%emt 0:05:06]} Ndxf4 $1 {[%emt 0:09:32]} 22. Rxf4 {[%emt 0:00:48]} Nxf4 {[%emt 0:00:05]} 23. Bxf4 {[%emt 0:00:05]} Qxd2 {[%emt 0:00:06]} 24. Bxd2 {[%emt 0:00:04]} Bxe5 {[%emt 0:00:03]} 25. Ne4 {[%emt 0:01:56]} Rad8 {[%emt 0:03:38]} 26. Bg5 {[%emt 0:05:29]} Rf7 {[%emt 0:04:22]} 27. Be3 {[%emt 0:06:35]} Bxb2 {[%emt 0:03:47]} 28. Rb1 {[%emt 0:06:40]} Bd4 {[%emt 0:00:17]} 29. Bxd4 {[%emt 0:00:37]} Rxd4 {[%emt 0:00:05]} 30. Rxb7 {[%emt 0:00:03]} e5 {[%emt 0:00:08]} 31. a6 {[%emt 0:01:39]} Ra4 $1 {[%emt 0:10:05]} 32. Nd6 {[%emt 0:01:34]} (32. Rb8+ Rf8 33. Rb2 Rxa6 $14) 32... Rf6 {[%emt 0:01:13]} 33. Ne8 {[%emt 0:01:52]} (33. Bxc6 Ra1+ (33... Rxa6 $2 34. Rb8+ Rf8 35. Bd5+ Kg7 36. Rb7+ Kh6 37. Nf7+ Kg7 38. Nxe5+ Kh8 39. Nf7+ Kg7 40. Ng5+ Kh6 41. Nf7+ Kg7 42. f4 $18) 34. Kg2 Rxd6 $19) 33... Ra1+ {[%emt 0:02:01]} 34. Bf1 {[%emt 0:00:14]} Rf5 {[%emt 0:00:51]} 35. Rxa7 {[%emt 0:02:22]} ({White should try} 35. Kg2 $11 Rg5+ (35... Kf8 $2 36. Ng7 $16) 36. Kh2) 35... e4 $15 {[%emt 0:02:45]} (35... Kf8 $2 36. Nd6 (36. Nc7 Kg7 $16) 36... Rg5+ 37. Kh2 Rxf1 38. Rf7+ Kg8 39. a7 $18) 36. Ra8 {[%emt 0:12:31]} (36. Kg2 $15 e3 (36... Rg5+ 37. Kh2 $11) (36... Kf8 $2 37. Ng7 $18) 37. Bc4+ Kf8 38. fxe3 Kxe8 39. Rxh7) 36... Rg5+ $19 {[%emt 0:00:54]} 37. Kh2 {[%emt 0:00:01]} Rxf1 {[%emt 0:00:10]} 38. Nd6+ {[%emt 0:00:11]} Kg7 {[%emt 0:00:04]} 39. Ra7+ {[%emt 0:00:12] [#]} Kf8 $1 {[%emt 0:06:00]} 40. Ra8+ {[%emt 0:00:00]} (40. Nxe4 $142 Re5 41. Rxh7) 40... Ke7 $19 {[%emt 0:00:00]} 41. Nxe4 {[%emt 0:02:30]} Re5 {[%emt 0:03:10]} 42. a7 {[%emt 0:01:24] [#]} Ra1 $1 {[%emt 0:02:15]} (42... Rxe4 43. Re8+ Kf7 (43... Kxe8 44. a8=Q+ Kd7 45. Qb7+ Kd6 46. Qb8+ Ke7 47. Qc7+ Kf8 48. Kg2 $11) 44. a8=Q $11 (44. a8=B $2 Rxf2+ 45. Kg3 Rxe8 $19)) 43. f3 {[%emt 0:07:00]} Rea5 {[%emt 0:00:38]} 44. Rc8 {[%emt 0:00:58]} Kd7 {[%emt 0:00:43]} (44... Rxa7 45. Rxc6 Rb7 46. h4 $17) 45. Rh8 {[%emt 0:00:08]} h5 {[%emt 0:01:19]} ({Much less strong is} 45... Rxa7 46. Rxh7+ Ke6 47. Rh8 $19) 46. Rh7+ {[%emt 0:02:32]} Ke6 {[%emt 0:01:51]} 47. Rg7 {[%emt 0:01:54]} (47. Rh8 $142) 47... h4 $19 {[%emt 0:00:57]} (47... Rxa7 48. Rxg6+ Kd7 49. Rh6 $19) 48. Rxg6+ {[%emt 0:01:17]} Kf7 {[%emt 0:00:09]} 49. Rg2 {[%emt 0:01:13]} Rxa7 {[%emt 0:01:16]} 50. Ng5+ {[%emt 0:00:53]} Kf6 {[%emt 0:00:22]} 51. Ne4+ {[%emt 0:00:04]} Ke5 {[%emt 0:00:07]} 52. Rg5+ {[%emt 0:00:11]} Kd4 {[%emt 0:00:10]} (52... Kf4 $142 53. Rg2 R7a2 (53... Kxf3 $2 54. Nd2+ Kf4 55. Rg4+ Kf5 56. Rxh4 $19)) 53. Kg2 {[%emt 0:00:07]} R7a2+ {[%emt 0:01:39]} 54. Nf2 {[%emt 0:00:01]} Re2 {[%emt 0:01:05]} 55. Rg4+ {[%emt 0:00:10]} Kc5 {[%emt 0:00:07]} 56. Re4 {[%emt 0:00:18]} Rxe4 {[%emt 0:00:06]} 0-1

[Event "85th Armenian Mens-ch 2024"]
[Site "Yerevan"]
[Date "2024.11.26"]
[Round "3.2"]
[White "Shahinyan, Vladimir"]
[Black "Babujian, Levon"]
[Result "1-0"]
[Annotator "TA"]
[ECO "C45"]
[WhiteElo "2161"]
[BlackElo "2330"]
[PlyCount "91"]
[EventDate "2024.11.24"]
[EventCountry "ARM"]
[SourceTitle "playchess.com"]
[Source "ChessBase"]
[SourceQuality "1"]
[TimeControl "40/5400+30:1800+30"]

{[%evp 9,91,11,29,13,27,23,34,9,6,0,0,0,0,0,43,43,52,51,47,19,32,12,10,0,0,-5,108,107,94,43,44,45,43,34,39,38,40,25,21,11,10,14,25,12,50,11,10,0,6,9,7,0,0,0,285,292,263,245,687,682,665,612,956,956,928,939,832,733,691,482,563,548,503,408,620,316,578,579,689,683,658,653,887,724]} 1. e4 {[%emt 0:00:05]} e5 {[%emt 0:00:04]} 2. Nf3 {[%emt 0:00:39]} Nc6 {[%emt 0:00:08]} 3. d4 {[%emt 0:00:09]} exd4 {[%emt 0:00:29]} 4. Nxd4 {[%emt 0:00:14]} Qf6 {[%emt 0:00:06]} 5. Nxc6 {[%emt 0:03:18]} dxc6 {[%emt 0:00:20]} (5... Bc5 $5 6. Qf3 dxc6 $11) 6. Nc3 {[%emt 0:04:18]} Be6 {[%emt 0:03:24]} 7. Be3 {[%emt 0:09:45]} Bb4 {[%emt 0:06:37]} 8. Qd4 {[%emt 0:04:34] White is slightly better.} c5 {[%emt 0:00:50]} 9. Qxf6 {[%emt 0:00:07]} Nxf6 {[%emt 0:00:05][%cal Bg8f6,Bf6e8,Be8c7][%mdl 32]} 10. f3 {[%emt 0:00:13]} Bxc3+ {[%emt 0:00:08]} 11. bxc3 {[%emt 0:00:06]} b6 {[%emt 0:01:10]} 12. Ba6 {[%emt 0:05:47]} Ke7 {[%emt 0:03:58]} 13. Bf4 {[%emt 0:11:49]} Ne8 {[%emt 0:00:10]} 14. e5 {[%emt 0:00:08]} h6 {[%emt 0:01:03]} 15. h4 {[%emt 0:02:52]} Rd8 {[%emt 0:03:09]} 16. h5 {[%emt 0:03:33]} c6 {[%emt 0:02:44]} 17. Bb7 {[%emt 0:11:00]} Bd7 {[%emt 0:04:47]} (17... Bd5 $11 {keeps the balance.}) 18. O-O-O $16 {[%emt 0:06:38]} Nc7 {[%emt 0:01:37] [#]} 19. Bg3 {[%emt 0:00:36] White has more active pieces.} ({White should try} 19. e6 $1 $16 Nxe6 20. Bd6+ Kf6 21. g4) 19... Rb8 $1 $14 {[%emt 0:09:50][%cal Bd8b8,Bb8b7,Bb7d7][%mdl 32] [#]} 20. e6 $1 {[%emt 0:01:18]} fxe6 {[%emt 0:01:14] Black is weak on the dark squares} 21. Bxc7 {[%emt 0:01:45] Bd6+ is the strong threat.} Rxb7 {[%emt 0:01:04]} 22. Be5 {[%emt 0:00:08]} Rg8 {[%emt 0:09:21]} 23. Rh4 {[%emt 0:02:16]} Be8 {[%emt 0:01:50]} 24. Bd6+ {[%emt 0:04:41]} Kd8 {[%emt 0:02:18]} 25. Bxc5+ {[%emt 0:00:23]} Rd7 {[%emt 0:00:06]} 26. Bd6 {[%emt 0:03:13]} c5 {[%emt 0:01:43]} 27. g4 {[%emt 0:03:04][%cal Bg2g4,Bg4g5][%mdl 32]} Kc8 {[%emt 0:03:01]} 28. f4 {[%emt 0:00:13]} g6 {[%emt 0:05:51]} 29. hxg6 {[%emt 0:01:01]} Rxg6 {[%emt 0:00:04]} 30. Rd2 {[%emt 0:04:59]} Rdg7 {[%emt 0:05:08]} 31. Be5 {[%emt 0:01:24]} Rg8 {[%emt 0:01:41][%mdl 8192] [#] Black is now going downhill.} (31... Rxg4 $11 {and Black is okay.} 32. Rxh6 Rd7 33. Rxd7 (33. Rxe6 Rg1+ 34. Kb2 Rxd2 $17) 33... Bxd7) 32. g5 $1 $18 {[%emt 0:01:38][%mdl 512]} h5 {[%emt 0:06:58]} 33. Rxh5 {[%emt 0:00:12]} Kb7 $2 {[%emt 0:02:05]} (33... R6g7) 34. Rh7+ {[%emt 0:02:06]} Ka6 {[%emt 0:00:04]} 35. c4 {[%emt 0:01:20]} Ba4 {[%emt 0:01:35]} 36. Rd3 {[%emt 0:02:14] And now Ra3 would win.} Ra8 {[%emt 0:00:06]} 37. Ra3 {[%emt 0:00:53][%cal Ra3a4]} b5 {[%emt 0:00:04]} 38. Rh6 {[%emt 0:02:49]} Rag8 {[%emt 0:00:33]} 39. Rah3 {[%emt 0:00:47]} bxc4 {[%emt 0:00:34]} 40. Ra3 {[%emt 0:00:00]} Kb5 {[%emt 0:00:00]} 41. Rh7 {[%emt 0:01:50]} a5 {[%emt 0:01:25]} (41... a6 $142 42. Re3 (42. Rc3 Rf8 $18) 42... Kb6) 42. Bc3 {[%emt 0:03:57] Threatens to win with Kb2.} Rb8 $2 {[%emt 0:03:53]} (42... Rf8 43. Rb7+ Kc6) 43. Rh6 {[%emt 0:01:37] White is clearly winning.} Rbg8 {[%emt 0:01:46]} 44. Kb2 {[%emt 0:00:20]} Rxh6 {[%emt 0:06:30]} 45. gxh6 {[%emt 0:00:06] h7 would now be deadly.} Rg2 {[%emt 0:00:14] [#]} 46. Rxa4 $1 {[%emt 0:00:25][%mdl 512] Weighted Error Value: White=0.23 (precise) /Black=0.51.  Loses game:     	---       	Black=1      Mistake:       	White=1     	Black=4      Inaccurate:     	White=3     	Black=2      OK:         	White=7     	Black=13     Best:        	White=3     	Black=4      Strong:       	---       	Black=1      Brilliant:      	White=2     	---} 1-0

[Event "85th Armenian Mens-ch 2024"]
[Site "Yerevan"]
[Date "2024.11.26"]
[Round "3.3"]
[White "Pogosyan, Stefan"]
[Black "Agasarov, Benik"]
[Result "0-1"]
[Annotator "TA"]
[ECO "E03"]
[WhiteElo "2407"]
[BlackElo "2410"]
[PlyCount "148"]
[EventDate "2024.11.24"]
[EventCountry "ARM"]
[SourceTitle "playchess.com"]
[Source "ChessBase"]
[SourceQuality "1"]
[TimeControl "40/5400+30:1800+30"]

{[%evp 54,148,-27,-12,-8,-223,-223,-227,-214,-214,-214,-213,-213,-213,-188,-188,-188,-299,-290,-257,-185,-422,-422,-422,-422,-422,-422,-446,-408,-401,-401,-390,-375,-438,-438,-434,-423,-423,-423,-405,-401,-423,-409,-400,0,-423,-423,-423,-416,-409,-409,-447,-447,-447,-447,-1631,-1395,-4801,-629,-662,-662,-662,-644,-4808,-4808,-4808,-4801,-4808,-4801,-4801,-4801,-4320,-1825,-4801,-489,-4801,-654,-645,0,-4801,-4801,-4801,-4801,-4170,-4170,-4160,-4153,-4145,-4145,-29978,-29979,-29979,-29980,-29980,-29981,-29983,-253]} 1. Nf3 {[%emt 0:06:04]} d5 {[%emt 0:00:13]} 2. c4 {[%emt 0:00:35]} e6 {[%emt 0:00:19]} 3. g3 {[%emt 0:00:07]} dxc4 {[%emt 0:02:24]} 4. Qa4+ {[%emt 0:06:24]} Nd7 {[%emt 0:00:05]} 5. Qxc4 {[%emt 0:00:55]} a6 {[%emt 0:00:05]} 6. d4 {[%emt 0:03:56]} b5 {[%emt 0:01:05]} 7. Qd3 {[%emt 0:00:20]} Bb7 {[%emt 0:00:52]} 8. Bg2 {[%emt 0:00:07]} Ngf6 {[%emt 0:00:40]} 9. a4 {[%emt 0:17:46]} c5 {[%emt 0:01:06]} 10. axb5 {[%emt 0:11:12]} c4 {[%emt 0:00:06]} 11. Qc2 {[%emt 0:08:40]} Be4 {[%emt 0:04:23]} 12. Qd2 {[%emt 0:10:10]} axb5 {[%emt 0:01:31]} 13. Rxa8 {[%emt 0:00:21]} Bxa8 {[%emt 0:03:16]} 14. O-O {[%emt 0:03:13]} b4 {[%emt 0:16:00]} 15. Ne5 {[%emt 0:06:12]} Bxg2 {[%emt 0:00:42]} 16. Kxg2 {[%emt 0:00:06]} Nb6 {[%emt 0:05:32]} 17. Qc2 {[%emt 0:09:09]} Qxd4 {[%emt 0:02:15]} 18. Bf4 {[%emt 0:01:25]} Nfd5 {[%emt 0:35:02]} 19. e3 {[%emt 0:08:25]} b3 {[%emt 0:02:17]} 20. Qe2 {[%emt 0:00:12]} Qe4+ {[%emt 0:00:18]} 21. f3 {[%emt 0:00:22]} Qc2 {[%emt 0:00:25]} 22. Qxc2 {[%emt 0:02:25]} bxc2 {[%emt 0:00:06]} 23. Nd2 {[%emt 0:00:01]} c3 {[%emt 0:00:34]} 24. bxc3 {[%emt 0:02:27]} Ba3 {[%emt 0:02:13]} 25. Nd3 {[%emt 0:01:04]} Nxc3 {[%emt 0:00:50]} 26. Ra1 {[%emt 0:01:09]} Nb5 {[%emt 0:00:13]} 27. Ra2 {[%emt 0:00:21]} c1=Q {[%emt 0:00:51]} (27... c1=N 28. Nxc1 $15) 28. Nxc1 {[%emt 0:00:04]} Bxc1 {[%emt 0:00:03]} 29. Nc4 $2 {[%emt 0:01:02]} (29. Ra6 $1 $11 {and White is okay.} Nd5 30. Nb3) 29... Nxc4 $19 {[%emt 0:02:15]} 30. Ra8+ {[%emt 0:00:07]} Kd7 {[%emt 0:00:09]} 31. Rxh8 {[%emt 0:00:03]} e5 {[%emt 0:00:05]} (31... Bxe3 32. Bxe3 Nxe3+ 33. Kf2 $15) (31... Nxe3+ 32. Kh1 $17) 32. Bxe5 {[%emt 0:00:41]} Nxe5 {[%emt 0:00:09]} 33. Rxh7 {[%emt 0:00:04]} Nd6 {[%emt 0:04:13]} (33... Bxe3 34. Rxg7 Nd6 35. Rg8 $19) 34. Rxg7 {[%emt 0:00:56]} Bxe3 {[%emt 0:00:28]} 35. h4 {[%emt 0:00:23]} (35. f4 $142 Nec4 36. Rg8) 35... Ke7 $19 {[%emt 0:01:03]} 36. Rg8 {[%emt 0:00:13]} Ne8 {[%emt 0:00:32]} 37. h5 $2 {[%emt 0:00:20]} (37. f4 {is the only way for White.} Ng6 38. Kh2) 37... Bh6 $19 {[%emt 0:00:19]} 38. f4 {[%emt 0:01:21]} Nd7 {[%emt 0:01:35]} 39. Rg4 {[%emt 0:00:31]} Ng7 {[%emt 0:04:33]} 40. Rh4 {[%emt 0:00:00]} Ne6 {[%emt 0:00:00]} 41. Rh1 {[%emt 0:01:08]} f5 {[%emt 0:03:05]} 42. Ra1 {[%emt 0:04:59]} Ng7 {[%emt 0:00:59]} 43. Kf3 {[%emt 0:00:55]} Nf6 {[%emt 0:00:50]} (43... Nxh5 $2 44. g4 $19) 44. Ra7+ {[%emt 0:01:35]} Kf8 {[%emt 0:00:20]} 45. Ra8+ {[%emt 0:00:26]} Kf7 {[%emt 0:00:41]} 46. Ra7+ {[%emt 0:00:44]} Kg8 {[%emt 0:00:36]} 47. Ra8+ {[%emt 0:00:42]} Kh7 {[%emt 0:00:05]} 48. Ra7 {[%emt 0:00:22]} Kg8 {[%emt 0:03:01]} 49. Ra8+ $1 {[%emt 0:00:12]} Nge8 {[%emt 0:00:05]} 50. Kg2 {[%emt 0:09:08]} Kf7 {[%emt 0:01:23]} 51. Ra6 {[%emt 0:02:41]} Bf8 {[%emt 0:01:48]} 52. Kh3 {[%emt 0:01:13]} Kg7 {[%emt 0:01:17]} (52... Nxh5 $2 53. Ra5 $19) 53. Ra5 {[%emt 0:02:11]} Nd6 {[%emt 0:00:16]} (53... Nxh5 54. Rxf5 Nhf6 55. Ra5 $19) 54. Ra7+ {[%emt 0:00:10]} (54. Kh4 $142) 54... Kh6 $19 {[%emt 0:00:25]} 55. Kh4 {[%emt 0:00:11]} Nde8 {[%emt 0:00:15]} (55... Nde4 $142 56. Ra5 Bc5 (56... Nxh5 57. Rxf5 Be7+ 58. Kg4 $17)) 56. Rb7 {[%emt 0:02:49]} Bd6 {[%emt 0:01:32]} (56... Nxh5 57. Rf7 $17) 57. Rb6 {[%emt 0:01:50]} Be7 {[%emt 0:00:46]} 58. Re6 {[%emt 0:02:35]} Bd6 {[%emt 0:00:27]} 59. Re3 {[%emt 0:04:22]} Ng7 {[%emt 0:00:14]} 60. Rd3 {[%emt 0:00:09]} Be7 {[%emt 0:00:56]} 61. Re3 {[%emt 0:00:14]} Bf8 {[%emt 0:02:51]} (61... Nfxh5+ 62. Rxe7 Nf6 63. Rb7 $17) 62. Re5 {[%emt 0:00:09]} Bd6 {[%emt 0:00:17]} (62... Bb4 $142 63. Re2 Ngxh5 (63... Nfxh5 $2 64. Kh3 $19)) 63. Ra5 {[%emt 0:00:17]} Be7 {[%emt 0:00:19]} (63... Ngxh5 $2 64. Rxf5 Be7 65. Kh3 $17) (63... Bb4 $142 64. Ra6 Ngxh5) 64. Ra7 {[%emt 0:00:33]} (64. Kh3 $142) 64... Bc5 {[%emt 0:01:36]} (64... Nfxh5+ 65. Rxe7 Nf6 66. Ra7 $15) (64... Bb4 $142 65. Rxg7 Kxg7) 65. Ra6 $19 {[%emt 0:00:32]} Be7 {[%emt 0:01:25]} (65... Ngxh5 $142 66. Ra5 Ne4 67. Ra6+ Nhf6) 66. Ra7 $19 {[%emt 0:00:01]} Bb4 {[%emt 0:00:17]} ({Less strong is} 66... Nfxh5+ 67. Rxe7 Nf6 68. Rb7 $17) 67. Ra4 {[%emt 0:01:24]} Be1 {[%emt 0:00:35]} 68. Ra1 {[%emt 0:01:29]} Bf2 {[%emt 0:00:03]} 69. Ra2 {[%emt 0:02:24]} Ne4 {[%emt 0:00:05]} 70. Ra6+ {[%emt 0:00:18]} Kh7 {[%emt 0:00:01]} 71. Rg6 {[%emt 0:00:47]} Bxg3+ {[%emt 0:00:07]} 72. Rxg3 {[%emt 0:00:10]} Nxg3 {[%emt 0:00:04]} 73. Kxg3 {[%emt 0:00:06]} Nxh5+ {[%emt 0:00:04]} 74. Kh4 {[%emt 0:00:04]} Kg6 $2 {[%emt 0:00:04]} ({Stronger than} 74... Nxf4 75. Kg5 $11) (74... Kh6 {mates} 75. Kh3 Nxf4+ 76. Kh2 Kh5 77. Kg3 Ne6 78. Kg2 Kg4 79. Kg1 Kg3 80. Kf1 f4 81. Ke2 f3+ 82. Ke1 Kg2 83. Kd1 f2 84. Kd2 f1=Q (84... f1=R $2 85. Kc3 $19) 85. Kc3 Qb5 86. Kc2 Qc4+ 87. Kb2 Nd4 88. Ka1 Qg8 89. Kb1 Qb3+ 90. Kc1 Qc2#) 0-1

[Event "85th Armenian Mens-ch 2024"]
[Site "Yerevan"]
[Date "2024.11.26"]
[Round "3.5"]
[White "Hakobyan, Erik"]
[Black "Gharibyan, Mamikon"]
[Result "1/2-1/2"]
[Annotator "TA"]
[ECO "C45"]
[WhiteElo "2409"]
[BlackElo "2462"]
[PlyCount "51"]
[EventDate "2024.11.24"]
[EventCountry "ARM"]
[SourceTitle "playchess.com"]
[Source "ChessBase"]
[SourceQuality "1"]
[TimeControl "40/5400+30:1800+30"]

{[%evp 9,51,19,6,10,19,10,28,20,22,18,25,20,40,18,31,3,12,5,18,10,2,5,6,0,0,0,-5,-12,-9,-15,-8,-4,0,0,0,0,0,-35,0,0,0,-36,0,0]} 1. e4 {[%emt 0:00:28]} e5 {[%emt 0:00:11]} 2. Nf3 {[%emt 0:00:40]} Nc6 {[%emt 0:00:40]} 3. d4 {[%emt 0:05:52]} exd4 {[%emt 0:00:39]} 4. Nxd4 {[%emt 0:00:24]} Qf6 {[%emt 0:02:16]} 5. Nf3 {[%emt 0:00:16]} Bb4+ {[%emt 0:01:29]} 6. c3 {[%emt 0:00:14]} Bc5 {[%emt 0:00:10]} 7. Be2 {[%emt 0:00:04]} Nge7 {[%emt 0:00:48]} 8. O-O {[%emt 0:00:58] White has an edge.} d6 {[%emt 0:03:30]} 9. b4 {[%emt 0:08:27]} Bb6 {[%emt 0:01:40]} 10. Nbd2 {[%emt 0:00:06]} h6 {[%emt 0:29:43][%cal Oe8g8]} 11. Qc2 {[%emt 0:07:48]} O-O {[%emt 0:06:37]} 12. Bb2 {[%emt 0:00:29]} Ng6 {[%emt 0:04:32]} 13. c4 {[%emt 0:30:34]} Nd4 {[%emt 0:03:28]} ({But not} 13... Nxb4 $6 14. Qb3 Qe6 15. Qxb4 $18) 14. Nxd4 {[%emt 0:01:00]} Bxd4 {[%emt 0:00:06]} 15. Bxd4 {[%emt 0:00:04]} Qxd4 {[%emt 0:00:04]} 16. Rad1 {[%emt 0:00:08]} Nf4 {[%emt 0:04:50]} 17. Rfe1 {[%emt 0:05:52]} Nxe2+ {[%emt 0:12:54]} 18. Rxe2 {[%emt 0:00:14]} Bg4 {[%emt 0:00:03]} 19. Nf3 $1 {[%emt 0:01:47]} Qb6 {[%emt 0:03:07]} 20. Qc3 {[%emt 0:00:26]} a5 {[%emt 0:03:21]} 21. b5 {[%emt 0:04:19]} Rae8 {[%emt 0:00:39]} 22. Rd5 {[%emt 0:04:55]} Be6 {[%emt 0:01:21]} 23. Rh5 {[%emt 0:03:08]} Bg4 {[%emt 0:04:42]} 24. Rd5 {[%emt 0:00:28]} Be6 {[%emt 0:00:49]} 25. Rh5 {[%emt 0:00:11]} Bg4 {[%emt 0:08:40]} 26. Rd5 {[%emt 0:01:49] Not much happened in this game.   Weighted Error Value: White=0.06 (flawless) /Black=0.06 (flawless) .  Inaccurate:     	White=2     	Black=2      OK:         	White=8     	Black=8      Strong:       	White=1     	---} 1/2-1/2

[Event "85th Armenian Mens-ch 2024"]
[Site "Yerevan"]
[Date "2024.11.26"]
[Round "3.6"]
[White "Piliposyan, Robert"]
[Black "Gasparyan, Erik R."]
[Result "1/2-1/2"]
[Annotator "TA"]
[ECO "D45"]
[WhiteElo "2418"]
[BlackElo "2371"]
[PlyCount "61"]
[EventDate "2024.11.24"]
[EventCountry "ARM"]
[SourceTitle "playchess.com"]
[Source "ChessBase"]
[SourceQuality "1"]
[TimeControl "40/5400+30:1800+30"]

{[%evp 15,61,0,8,18,23,6,9,11,6,10,25,15,16,16,21,20,27,27,25,33,20,22,29,21,29,20,30,25,28,22,24,8,20,17,20,18,17,20,44,44,44,44,44,44,49,53,56,56]} 1. c4 {[%emt 0:00:55]} c6 {[%emt 0:00:04]} 2. d4 {[%emt 0:00:58]} d5 {[%emt 0:00:13]} 3. Nf3 {[%emt 0:00:20]} Nf6 {[%emt 0:00:13]} 4. Nc3 {[%emt 0:00:49]} e6 {[%emt 0:00:04]} 5. e3 {[%emt 0:08:17]} Nbd7 {[%emt 0:00:09]} 6. Qc2 {[%emt 0:02:15]} Bd6 {[%emt 0:02:20]} 7. Be2 {[%emt 0:01:25]} O-O {[%emt 0:02:47]} 8. O-O {[%emt 0:01:42]} Qe7 {[%emt 0:08:45]} 9. c5 {[%emt 0:15:16]} Bc7 {[%emt 0:02:10]} 10. e4 {[%emt 0:00:11]} dxe4 {[%emt 0:16:41]} 11. Nxe4 {[%emt 0:00:15]} Nxe4 {[%emt 0:06:07]} 12. Qxe4 {[%emt 0:00:16]} e5 {[%emt 0:00:15]} 13. Bg5 {[%emt 0:23:26]} Nf6 $1 {[%emt 0:20:21]} 14. Bxf6 {[%emt 0:04:48]} ({Much worse is} 14. Nxe5 Nxe4 15. Bxe7 Re8 $15) ({Don't play} 14. dxe5 Re8 15. Qb4 (15. exf6 $2 {perishes.} Qxe4 16. Be3 Qg6 $19) 15... Bxe5 $14) 14... gxf6 {[%emt 0:03:11]} 15. Nh4 {[%emt 0:03:21]} Qe6 {[%emt 0:00:17]} 16. Bd3 {[%emt 0:05:12][%csl Gd3][%cal Re4h7]} f5 $1 {[%emt 0:00:05]} 17. Nxf5 {[%emt 0:00:32]} Qxf5 {[%emt 0:00:09]} 18. Qxf5 {[%emt 0:00:04]} Bxf5 {[%emt 0:00:05]} 19. Bxf5 {[%emt 0:00:02]} exd4 {[%emt 0:00:05]} 20. Rad1 {[%emt 0:02:14]} Rad8 {[%emt 0:02:24]} 21. Rfe1 {[%emt 0:01:27]} Rfe8 {[%emt 0:04:28] Prevents Re7.} 22. Rxe8+ {[%emt 0:03:41]} Rxe8 $11 {[%emt 0:00:16][%mdl 4096] Endgame KRB-KRB} 23. b4 {[%emt 0:04:59][%cal Og1f1]} a5 {[%emt 0:07:44]} 24. g4 {[%emt 0:03:26]} Rd8 {[%emt 0:03:13]} 25. a3 {[%emt 0:01:19][%cal Ba2a3,Ba3b4,Bb4b5,Bb5c6][%mdl 32]} axb4 {[%emt 0:03:23]} 26. axb4 {[%emt 0:09:10]} d3 {[%emt 0:01:38]} 27. Rxd3 {[%emt 0:01:21]} Rxd3 {[%emt 0:00:05]} 28. Bxd3 {[%emt 0:00:03]} Be5 {[%emt 0:00:06]} 29. Be4 {[%emt 0:00:59]} Bc3 {[%emt 0:00:38] [#]} 30. b5 $1 {[%emt 0:00:07]} Bd4 {[%emt 0:00:17]} (30... cxb5 31. Bxb7) 31. bxc6 {[%emt 0:00:05]} 1/2-1/2